fUSD/lending_fUSD_20260202
["ID","MTS","AMOUNT","RATE_DAILY","PERIOD"]
[404274584,1770022245436,-150.0,0.0001699,2]
[404274585,1770022245445,-1899.6725397,0.00017007,2]
[404274586,1770022245456,-150.0,0.00017012,2]
[404274587,1770022245465,-3336.0,0.00017028,2]
[404274588,1770022245475,-150.0,0.00017034,2]
[404274589,1770022245485,-500.0,0.00017038,2]
[404274590,1770022245494,-163.0,0.0001704,2]
[404274591,1770022245503,-163.0,0.0001704,2]
[404274592,1770022245512,-163.0,0.0001704,2]
[404274593,1770022245521,-839.0,0.0001704,2]
[404274594,1770022245531,-150.0,0.00017056,2]
[404274596,1770022245541,-150.0,0.00017078,2]
[404274597,1770022245551,-5888.0,0.00017097,2]
[404274599,1770022245560,-150.0,0.000171,2]
[404274601,1770022245570,-1500.0,0.000171,2]
[404274603,1770022245582,-36266.91542155,0.00017113,2]
[404274605,1770022245591,-1628.18837233,0.00017116,2]
[404274606,1770022245601,-643.18674336,0.00017116,2]
[404274608,1770022245610,-2000.0,0.00017116,2]
[404274610,1770022245619,-974.64879752,0.00017116,2]
[404274611,1770022245629,-1488.36339388,0.00017116,2]
[404274613,1770022245639,-1256.98671009,0.00017116,2]
[404274615,1770022245648,-2136.8475123,0.00017116,2]
[404274618,1770022245864,-2000.0,0.00017116,2]
[404274619,1770022245875,-508.230722,0.00017116,2]
[404274620,1770022245885,-2000.0,0.00017116,2]
[404274621,1770022245897,-2000.0,0.00017116,2]
[404274622,1770022245907,-689.68040771,0.00017116,2]
[404274623,1770022245918,-506.20015718,0.00017116,2]
[404274624,1770022245928,-2000.0,0.00017116,2]
[404274625,1770022245938,-150.0,0.00017122,2]
[404274626,1770022245947,-150.0,0.00017144,2]
[404274627,1770022245959,-2528.32914092,0.00017162,2]
[404274628,1770022245968,-150.0,0.00017166,2]
[404274629,1770022245977,-150.0,0.00017188,2]
[404274630,1770022245987,-5888.0,0.00017198,2]
[404274631,1770022246000,-183.82,0.00017202,2]
[404274632,1770022246010,-371.29,0.00017202,2]
[404274634,1770022246019,-360.5,0.00017202,2]
[404274636,1770022246029,-360.5,0.00017202,2]
[404274637,1770022246040,-150.0,0.0001721,2]
[404274638,1770022246052,-150.0,0.00017232,2]
[404274639,1770022246063,-342.97,0.00017232,2]
[404274640,1770022246073,-163.0,0.00017235,2]
[404274641,1770022246083,-150.0,0.00017254,2]
[404274642,1770022246094,-3336.0,0.0001726,2]
[404274643,1770022246104,-1000.0,0.0001726,2]
[404274644,1770022246115,-150.0,0.00017276,2]
[404274645,1770022246125,-164.64,0.00017277,2]
[404274646,1770022246135,-242.15909246,0.00017285,2]
[404274647,1770022246146,-242.15909246,0.00017285,2]
[404274648,1770022246155,-201.93286099,0.00017285,2]
[404274649,1770022246165,-1038.7408786,0.00017285,2]
[404274650,1770022246175,-1651.81367706,0.00017285,2]
[404274651,1770022246184,-772.93,0.0001729,2]
[404274652,1770022246193,-150.0,0.00017298,2]
[404274653,1770022246205,-153.85,0.00017311,2]
[404274654,1770022246214,-150.0,0.0001732,2]
[404274655,1770022246224,-150.0,0.00017341,2]
[404274656,1770022246233,-159.99318318,0.00017353,2]
[404274657,1770022246243,-839.0,0.0001736,2]
[404274658,1770022246252,-839.0,0.0001736,2]
[404274659,1770022246262,-163.0,0.0001736,2]
[404274660,1770022246275,-163.0,0.0001736,2]
[404274661,1770022246284,-150.0,0.00017363,2]
[404274662,1770022246293,-150.0,0.00017385,2]
[404274663,1770022246302,-150.0,0.00017407,2]
[404274664,1770022246313,-150.0,0.00017429,2]
[404274665,1770022246322,-150.0,0.00017451,2]
[404274666,1770022246331,-150.0,0.00017473,2]
[404274667,1770022246342,-150.0,0.00017495,2]
[404274668,1770022246351,-150.0,0.00017517,2]
[404274669,1770022246360,-1000.0,0.00017534,2]
[404274670,1770022246370,-150.0,0.00017539,2]
[404274671,1770022246380,-33288.2505,0.0001754,2]
[404274673,1770022246390,-163.0,0.00017555,2]
[404274675,1770022246399,-150.0,0.00017561,2]
[404274677,1770022246408,-200.009499,0.00017565,2]
[404274679,1770022246418,-150.0,0.00017583,2]
[404274681,1770022246427,-900.0,0.00017594,2]
[404274683,1770022246436,-150.0,0.00017605,2]
[404274685,1770022246447,-3336.0,0.0001761,2]
[404274687,1770022246457,-150.0,0.00017627,2]
[404274690,1770022246467,-3336.0,0.00017635,2]
[404274692,1770022246477,-3012.2001319,0.0001764,2]
[404274694,1770022246487,-150.0,0.00017649,2]
[404274696,1770022246496,-3420.9153,0.00017662,2]
[404274698,1770022246505,-447.23523297,0.00017664,2]
[404274700,1770022246514,-1002.53462592,0.00017664,2]
[404274702,1770022246524,-502.03881526,0.00017664,2]
[404274704,1770022246533,-1504.86417643,0.00017664,2]
[404274706,1770022246542,-716.63993214,0.00017664,2]
[404274708,1770022246552,-150.0,0.00017671,2]
[404274710,1770022246561,-1666.0,0.0001768,2]
[404274712,1770022246569,-163.0,0.0001768,2]
[404274714,1770022246578,-313.0,0.0001768,2]
[404274716,1770022246588,-163.0,0.0001768,2]
[404274718,1770022246597,-3336.0,0.00017691,2]
[404274720,1770022246607,-150.0,0.00017693,2]
[404274722,1770022246616,-1500.0,0.000177,2]
[404274724,1770022246626,-150.0,0.00017715,2]
[404274725,1770022246635,-150.0,0.00017717,2]
[404274726,1770022246644,-1000.0,0.00017721,2]
[404274727,1770022246653,-230.0,0.00017725,2]
[404274728,1770022246663,-387.0,0.00017733,2]
[404274729,1770022246672,-150.0,0.00017737,2]
[404274730,1770022246682,-1000.0,0.00017746,2]
[404274731,1770022246691,-200.0,0.00017746,2]
[404274733,1770022246701,-150.0,0.00017759,2]
[404274736,1770022246712,-1000.0,0.00017771,2]
[404274738,1770022246722,-150.0,0.00017775,2]
[404274740,1770022246731,-1000.0,0.00017779,2]
[404274741,1770022246741,-150.0,0.0001778,2]
[404274743,1770022246751,-1000.0,0.00017785,2]
[404274745,1770022246763,-10139.4576,0.000178,2]
[404274746,1770022246773,-502.14,0.000178,3]
[404274747,1770022246782,-150.0,0.00017802,2]
[404274748,1770022246792,-500.0,0.00017808,2]
[404274749,1770022246801,-370.87018135,0.00017808,2]
[404274750,1770022246810,-1000.0,0.00017808,2]
[404274751,1770022246820,-25000.0,0.00017814,3]
[404274752,1770022246829,-1000.0,0.00017817,2]
[404274753,1770022246839,-3764.4246687,0.0001782,10]
[404274754,1770022246848,-25000.0,0.00017823,3]
[404274755,1770022246858,-150.0,0.00017824,2]
[404274756,1770022246868,-150.0,0.00017828,2]
[404274757,1770022246879,-877.65513559,0.0001783,2]
[404274758,1770022246890,-346.92554585,0.00017831,2]
[404274759,1770022246900,-599.60298507,0.00017832,2]
[404274760,1770022246910,-747.8093786,0.00017832,2]
[404274761,1770022246923,-25000.0,0.00017832,3]
[404274762,1770022246933,-251.11897888,0.00017833,2]
[404274763,1770022246942,-227.86985187,0.00017833,2]
[404274764,1770022246951,-209.40437684,0.00017833,2]
[404274765,1770022246962,-1712.93078312,0.00017833,2]
[404274766,1770022246972,-150.0,0.0001784,2]
[404274767,1770022246981,-25000.0,0.0001784,3]
[404274768,1770022246991,-150.0,0.00017846,2]
[404274769,1770022247000,-25000.0,0.00017849,3]
[404274770,1770022247010,-3336.0,0.00017851,2]
[404274771,1770022247019,-200.0,0.00017855,2]
[404274772,1770022247029,-200.0,0.00017856,2]
[404274773,1770022247039,-200.0,0.00017856,2]
[404274774,1770022247049,-200.0,0.00017856,2]
[404274775,1770022247058,-25000.0,0.00017858,3]
[404274776,1770022247067,-500.0,0.00017863,2]
[404274777,1770022247077,-25000.0,0.00017867,3]
[404274778,1770022247087,-150.0,0.00017868,2]
[404274779,1770022247097,-25000.0,0.00017876,3]
[404274780,1770022247107,-25000.0,0.00017884,3]
[404274781,1770022247116,-162.40872272,0.00017888,2]
[404274782,1770022247125,-150.0,0.00017889,2]
[404274783,1770022247135,-150.0,0.0001789,2]
[404274784,1770022247144,-25000.0,0.00017893,3]
[404274785,1770022247153,-364.26275163,0.000179,2]
[404274786,1770022247163,-1777.28427788,0.000179,3]
[404274787,1770022247173,-36266.91542155,0.000179,2]
[404274788,1770022247182,-13401.0,0.000179,2]
[404274789,1770022247191,-25000.0,0.00017902,3]
[404274790,1770022247200,-153.21504762,0.00017904,2]
[404274791,1770022247210,-25000.0,0.00017911,3]
[404274792,1770022247220,-150.0,0.00017912,2]
[404274793,1770022247230,-500.0,0.00017918,2]
[404274794,1770022247239,-25000.0,0.0001792,3]
[404274795,1770022247248,-1000.0,0.00017928,2]
[404274796,1770022247258,-25000.0,0.00017928,3]
[404274797,1770022247269,-1000.0,0.00017931,2]
[404274798,1770022247278,-150.0,0.00017931,2]
[404274799,1770022247287,-150.0,0.00017934,2]
[404274800,1770022247297,-25000.0,0.00017937,3]
[404274801,1770022247307,-150.0,0.00017943,2]
[404274802,1770022247316,-25000.0,0.00017946,3]
[404274803,1770022247325,-25000.0,0.00017955,3]
[404274804,1770022247336,-150.0,0.00017956,2]
[404274805,1770022247347,-25000.0,0.00017964,3]
[404274806,1770022247356,-506.1208044,0.00017972,2]
[404274807,1770022247366,-25000.0,0.00017972,3]
[404274808,1770022247375,-159.99318318,0.00017973,2]
[404274809,1770022247384,-517.86422234,0.00017976,2]
[404274810,1770022247395,-150.0,0.00017978,2]
[404274811,1770022247404,-25000.0,0.00017981,3]
[404274812,1770022247414,-500.0,0.00017982,2]
[404274813,1770022247423,-25000.0,0.0001799,3]
[404274814,1770022247433,-248.17115062,0.00017999,2]
[404274815,1770022247442,-299.809,0.00017999,2]
[404274816,1770022247452,-300.0,0.00017999,2]
[404274817,1770022247463,-300.0,0.00017999,2]
[404274818,1770022247472,-300.0,0.00017999,2]
[404274819,1770022247481,-300.0,0.00017999,2]
[404274820,1770022247490,-666.0,0.00017999,2]
[404274821,1770022247499,-300.0,0.00017999,2]
[404274822,1770022247509,-242.32940609,0.00018,2]
[404274823,1770022247518,-1132477.21070866,0.00018,2]
[404274824,1770022247528,-158626.92006523,0.00018,2]
[404274825,1770022247537,-1191.99317303,0.00018,2]
[404274826,1770022247546,-5800.0,0.00018,2]
[404274827,1770022247555,-2142875.55540753,0.00018,2]
[404274828,1770022247922,-60527.73578143,0.00018,2]
[404274829,1770022248058,-3251.89,0.00018,2]
[404274830,1770022248071,-1534.76,0.00018,2]
[404274831,1770022248093,-3106.43210227,0.00018,2]
[404274832,1770022248105,-1166.45523108,0.00018,2]
[404274833,1770022248172,-1121.37397614,0.00018,2]
[404274834,1770022256356,-255.99999983,0.00010816,2]
[404274835,1770022258687,-166.66000017,0.00010816,2]
[404274836,1770022260920,-481.07873741,0.00010816,2]
[404274837,1770022262392,-96.26126259,0.00010816,2]
[404274838,1770022262416,-479.124145,0.00010917,2]
[404274839,1770022265188,-186.95725977,0.00010377,2]
[404274840,1770022267355,-381.1383975,0.00010377,2]
[404274841,1770022268901,-213.73649392,0.00010377,2]
[404274842,1770022272335,-458.13,0.00010377,2]
[404274843,1770022274805,-191.87,0.00010377,2]
[404274844,1770022628368,1390.144983,7.945e-05,2]
[404274845,1770022721926,-448.20652452,0.00010298,2]
[404274846,1770022751367,-250.0,0.0001035,2]
[404274847,1770022751388,-25.01153369,0.00010377,2]
[404274854,1770022901437,-166.66,0.00010272,2]
[404274855,1770022904331,-311.569566,0.00010272,2]
[404274856,1770022904353,-194.04359604,0.00010276,2]
[404274857,1770022904374,-26.44156871,0.000103,2]
[404274858,1770022906672,-135.79843129,0.000103,2]
[404274859,1770022906693,-223.31156871,0.00010324,2]
[404274861,1770022931312,-11.68843129,0.00010324,2]
[404274862,1770022931336,-300.0,0.00010376,2]
[404274863,1770022931359,-99.67375606,0.00010377,2]
[404274864,1770022933702,-250.0,0.0001035,2]
[404274865,1770022933725,-295.90255906,0.00010377,2]
[404274866,1770022933747,-153.19,0.00010377,2]
[404274867,1770022933769,-500.0,0.00010377,2]
[404274868,1770022933796,-293.81526552,0.00010377,2]
[404274869,1770022935918,-206.18473448,0.00010377,2]
[404274870,1770022935940,-216.67,0.00010377,2]
[404274871,1770022935961,-200.0,0.00010377,2]
[404274872,1770022935983,-28.16432857,0.00010807,2]
[404274873,1770022938899,-439.10829603,0.00010807,2]
[404274874,1770022941152,-500.036556,0.00010807,2]
[404274875,1770022943317,-232.6908194,0.00010807,2]
[404274876,1770022943341,-300.0,0.00010807,2]
[404274877,1770022943364,-1200.0,0.00010808,2]
[404274878,1770022943392,-150.0,0.00010808,2]
[404274879,1770022943416,-151.0,0.00010809,2]
[404274880,1770022943439,-151.0,0.00010809,2]
[404274881,1770022943462,-151.0,0.00010809,2]
[404274882,1770022943484,-151.0,0.00010809,2]
[404274883,1770022943509,-151.0,0.00010809,2]
[404274884,1770022943530,-151.0,0.00010809,2]
[404274885,1770022943553,-151.0,0.00010809,2]
[404274886,1770022943577,-151.0,0.00010809,2]
[404274887,1770022943601,-151.0,0.00010809,2]
[404274888,1770022943626,-151.0,0.00010809,2]
[404274889,1770022943648,-151.0,0.00010809,2]
[404274890,1770022943672,-151.0,0.00010809,2]
[404274891,1770022943695,-151.0,0.00010809,2]
[404274892,1770022943716,-151.0,0.00010809,2]
[404274893,1770022943737,-151.0,0.00010809,2]
[404274894,1770022943760,-151.0,0.00010809,2]
[404274895,1770022943782,-151.0,0.00010809,2]
[404274896,1770022943805,-151.0,0.00010809,2]
[404274897,1770022943832,-500.0,0.00010809,2]
[404274898,1770022943856,-151.0,0.00010809,2]
[404274899,1770022943878,-151.0,0.00010809,2]
[404274900,1770022943901,-500.0,0.00010809,2]
[404274901,1770022943923,-151.0,0.00010809,2]
[404274902,1770022943946,-151.0,0.00010809,2]
[404274903,1770022943968,-500.0,0.00010809,2]
[404274904,1770022943991,-151.0,0.00010809,2]
[404274905,1770022944014,-151.0,0.00010809,2]
[404274906,1770022944038,-500.0,0.00010809,2]
[404274907,1770022944061,-151.0,0.00010809,2]
[404274908,1770022944085,-151.0,0.00010809,2]
[404274909,1770022944108,-500.0,0.00010809,2]
[404274910,1770022944132,-151.0,0.00010809,2]
[404274911,1770022944155,-151.0,0.00010809,2]
[404274912,1770022944177,-500.0,0.00010809,2]
[404274913,1770022944200,-151.0,0.00010809,2]
[404274914,1770022944227,-500.0,0.00010809,2]
[404274915,1770022944251,-151.0,0.00010809,2]
[404274916,1770022944273,-500.0,0.00010809,2]
[404274917,1770022944295,-500.0,0.00010809,2]
[404274918,1770022944317,-151.0,0.00010809,2]
[404274919,1770022944340,-500.0,0.00010809,2]
[404274920,1770022944362,-500.0,0.00010809,2]
[404274921,1770022944384,-500.0,0.00010809,2]
[404274922,1770022944406,-500.0,0.00010809,2]
[404274923,1770022944434,-500.0,0.00010809,2]
[404274924,1770022944462,-500.0,0.00010809,2]
[404274925,1770022944484,-500.0,0.00010809,2]
[404274926,1770022944508,-500.0,0.00010809,2]
[404274927,1770022944529,-500.0,0.00010809,2]
[404274928,1770022944552,-500.0,0.00010809,2]
[404274929,1770022944574,-500.0,0.00010809,2]
[404274930,1770022944598,-1622.9577214,0.00010816,2]
[404274931,1770022945793,-162.97609342,0.00010809,2]
[404274932,1770022947865,-337.02390658,0.00010809,2]
[404274933,1770022947887,-162.97609342,0.00010809,2]
[404274934,1770022949506,-337.02390658,0.00010809,2]
[404274935,1770022949528,-500.0,0.00010809,2]
[404274936,1770022949550,-1144.3999456,0.00010816,2]
[404274937,1770022950997,-318.49932487,0.00010816,2]
[404274939,1770022953960,-356.66517712,0.00010816,2]
[404274940,1770022957903,-646.24399851,0.00010816,2]
[404274941,1770022959704,-354.90584462,0.00010816,2]
[404274942,1770022962245,-199.75245602,0.00010816,2]
[404274943,1770022967411,-471.24218522,0.00010816,2]
[404274944,1770022969416,-500.0,0.00010816,2]
[404274945,1770022973030,-186.75781478,0.00010816,2]
[404274946,1770022974528,-177.71399708,0.00010816,2]
[404274947,1770022976047,-250.0,0.00010816,2]
[404274948,1770022978212,-427.99821254,0.00010816,2]
[404274949,1770022982963,-205.0,0.00010815,2]
[404274950,1770022982986,-373.99821254,0.00010816,2]
[404274951,1770022986966,-452.0,0.00010816,2]
[404274952,1770022992021,-351.0,0.00010816,2]
[404274953,1770022994195,-302.0,0.00010816,2]
[404274954,1770022997374,-200.0,0.00010816,2]
[404274955,1770022999928,-250.0,0.00010816,2]
[404274956,1770023006127,-401.0,0.00010816,2]
[404274957,1770023009000,-302.0,0.00010816,2]
[404274958,1770023014021,-302.0,0.00010816,2]
[404274959,1770023016771,-302.0,0.00010709,2]
[404274960,1770023019714,-1068.98591878,0.00010709,2]
[404274961,1770023023137,-1068.98591878,0.00010623,2]
[404274962,1770023026389,-34.01408122,0.00010623,2]
[404274963,1770023026415,-131.32806952,0.00010709,2]
[404274964,1770023030900,-201.87285383,0.00010298,2]
[404274965,1770023032711,-941.09340934,0.00010298,2]
[404274966,1770023032738,-658.90659066,0.00010709,2]
[404274967,1770023034557,-245.11593115,0.00010709,2]
[404274968,1770023038107,-5044.8474052,0.00010709,2]
[404274969,1770023039911,-15642.98604797,0.00010709,2]
[404274970,1770023042880,-300.0,0.00010708,2]
[404274971,1770023042908,-108.3,0.00010709,2]
[404274972,1770023045069,-567.55018807,0.00010709,2]
[404274973,1770023047349,-322.20939922,0.00010709,2]
[404274974,1770023049507,-386.24934048,0.00010709,2]
[404274975,1770023053526,-250.0,0.00010709,2]
[404274976,1770023055738,-462.2217,0.00010709,2]
[404274977,1770023058727,-2500.0,0.00010709,2]
[404274978,1770023062903,-189.87093695,0.00010709,2]
[404274979,1770023067343,-359.11,0.00010709,2]
[404274980,1770023070280,-171.864,0.00010709,2]
[404274981,1770023073858,-179.96450468,0.00010708,2]
[404274982,1770023073888,-312.83505962,0.00010708,2]
[404274983,1770023073919,-190.99319535,0.00010708,2]
[404274984,1770023073950,-500.0,0.00010708,2]
[404274985,1770023073982,-648.27685944,0.00010708,2]
[404274986,1770023147136,183.0,0.00021,30]
[404274987,1770023151824,-250.0,0.00010682,2]
[404274988,1770023151852,-1200.0,0.00010707,2]
[404274989,1770023151880,-500.0,0.00010708,2]
[404274990,1770023151907,-500.0,0.00010708,2]
[404274991,1770023151934,-259.59041069,0.00010708,2]
[404274992,1770023151961,-500.0,0.00010708,2]
[404274993,1770023151988,-500.0,0.00010708,2]
[404274994,1770023152018,-500.0,0.00010708,2]
[404274995,1770023152052,-550.10835906,0.00010708,2]
[404274996,1770023152083,-42.89863188,0.00010708,2]
[404274997,1770023152501,-394.81519674,0.00010708,2]
[404274998,1770023152528,-592.95940528,0.00010708,2]
[404274999,1770023152560,-550.10835906,0.00010708,2]
[404275000,1770023152594,-550.10835906,0.00010708,2]
[404275001,1770023152626,-550.10835906,0.00010708,2]
[404275002,1770023152657,-550.10835906,0.00010708,2]
[404275003,1770023152688,-550.10835906,0.00010708,2]
[404275004,1770023152718,-550.10835906,0.00010708,2]
[404275005,1770023152748,-550.10835906,0.00010708,2]
[404275006,1770023153216,-550.10835906,0.00010708,2]
[404275007,1770023153247,-550.10835906,0.00010708,2]
[404275008,1770023153279,-550.10835906,0.00010708,2]
[404275009,1770023153314,-550.10835906,0.00010708,2]
[404275010,1770023153345,-550.10835906,0.00010708,2]
[404275011,1770023153378,-550.10835906,0.00010708,2]
[404275012,1770023153410,-550.10835906,0.00010708,2]
[404275013,1770023153441,-550.10835906,0.00010708,2]
[404275014,1770023153472,-550.10835906,0.00010708,2]
[404275015,1770023153679,-550.10835906,0.00010708,2]
[404275016,1770023153711,-550.10835906,0.00010708,2]
[404275017,1770023153744,-550.10835906,0.00010708,2]
[404275018,1770023153776,-550.10835906,0.00010708,2]
[404275019,1770023153807,-550.10835906,0.00010708,2]
[404275020,1770023153839,-550.10835906,0.00010708,2]
[404275021,1770023153870,-550.10835906,0.00010708,2]
[404275022,1770023153903,-550.10835906,0.00010708,2]
[404275023,1770023153935,-550.10835906,0.00010708,2]
[404275024,1770023154244,-550.10835906,0.00010708,2]
[404275025,1770023154277,-550.10835906,0.00010708,2]
[404275026,1770023154309,-550.10835906,0.00010708,2]
[404275027,1770023154341,-550.10835906,0.00010708,2]
[404275028,1770023154374,-550.10835906,0.00010708,2]
[404275029,1770023154406,-550.10835906,0.00010708,2]
[404275030,1770023154437,-550.10835906,0.00010708,2]
[404275031,1770023154469,-550.10835906,0.00010708,2]
[404275032,1770023154501,-550.10835906,0.00010708,2]
[404275033,1770023154723,-550.10835906,0.00010708,2]
[404275034,1770023154757,-555.47526988,0.00010708,2]
[404275035,1770023154789,-555.47526988,0.00010708,2]
[404275036,1770023154823,-555.47526988,0.00010708,2]
[404275037,1770023154859,-555.47526988,0.00010708,2]
[404275038,1770023154896,-555.47526988,0.00010708,2]
[404275039,1770023154929,-555.47526988,0.00010708,2]
[404275040,1770023154964,-555.47526988,0.00010708,2]
[404275041,1770023155000,-555.47526988,0.00010708,2]
[404275042,1770023155091,-555.47526988,0.00010708,2]
[404275043,1770023155123,-555.47526988,0.00010708,2]
[404275044,1770023155154,-555.47526988,0.00010708,2]
[404275045,1770023155185,-555.47526988,0.00010708,2]
[404275046,1770023155216,-550.10835906,0.00010708,2]
[404275047,1770023155246,-555.47526988,0.00010708,2]
[404275048,1770023155277,-550.10835906,0.00010708,2]
[404275049,1770023155310,-550.10835906,0.00010708,2]
[404275050,1770023155344,-555.47526988,0.00010708,2]
[404275051,1770023155559,-555.47526988,0.00010708,2]
[404275052,1770023155595,-555.47526988,0.00010708,2]
[404275053,1770023155628,-555.47526988,0.00010708,2]
[404275054,1770023155661,-550.10835906,0.00010708,2]
[404275055,1770023155691,-550.10835906,0.00010708,2]
[404275056,1770023155721,-555.47526988,0.00010708,2]
[404275057,1770023155753,-555.47526988,0.00010708,2]
[404275058,1770023155789,-555.47526988,0.00010708,2]
[404275059,1770023155822,-555.47526988,0.00010708,2]
[404275060,1770023155941,-555.47526988,0.00010708,2]
[404275061,1770023155972,-555.47526988,0.00010708,2]
[404275062,1770023156005,-555.47526988,0.00010708,2]
[404275063,1770023156037,-555.47526988,0.00010708,2]
[404275064,1770023156068,-555.47526988,0.00010708,2]
[404275065,1770023156098,-555.47526988,0.00010708,2]
[404275066,1770023156129,-555.47526988,0.00010708,2]
[404275067,1770023156161,-555.47526988,0.00010708,2]
[404275068,1770023156193,-555.47526988,0.00010708,2]
[404275069,1770023156537,-555.47526988,0.00010708,2]
[404275070,1770023156572,-555.47526988,0.00010708,2]
[404275071,1770023156604,-555.47526988,0.00010708,2]
[404275072,1770023156639,-555.47526988,0.00010708,2]
[404275073,1770023156674,-555.47526988,0.00010708,2]
[404275074,1770023156707,-555.47526988,0.00010708,2]
[404275075,1770023156739,-555.47526988,0.00010708,2]
[404275076,1770023156771,-550.10835906,0.00010708,2]
[404275077,1770023156805,-555.47526988,0.00010708,2]
[404275078,1770023160393,-555.47526988,0.00010708,2]
[404275079,1770023160427,-555.47526988,0.00010708,2]
[404275080,1770023160460,-555.47526988,0.00010708,2]
[404275081,1770023160493,-555.47526988,0.00010708,2]
[404275082,1770023160530,-555.47526988,0.00010708,2]
[404275083,1770023160564,-550.10835906,0.00010708,2]
[404275084,1770023160603,-555.47526988,0.00010708,2]
[404275085,1770023160638,-555.47526988,0.00010708,2]
[404275086,1770023160671,-555.47526988,0.00010708,2]
[404275087,1770023160876,-555.47526988,0.00010708,2]
[404275088,1770023160905,-176.99548947,0.00010708,2]
[404275089,1770023160937,-224.51576948,0.00010708,2]
[404275090,1770023162472,-1150.345313,0.00010654,2]
[404275091,1770023163020,-150.0,0.00010707,2]
[404275094,1770023171595,-9179.30573198,0.00010709,2]
[404275095,1770023171705,-10000.01,0.00010709,2]
[404275096,1770023171944,-10000.01,0.00010709,2]
[404275098,1770023172199,-10000.01,0.00010709,2]
[404275099,1770023172454,-10000.01,0.00010709,2]
[404275100,1770023172725,-10000.01,0.00010709,2]
[404275101,1770023172958,-10000.01,0.00010709,2]
[404275103,1770023178487,-10000.01,0.00010709,2]
[404275104,1770023178779,-10000.01,0.00010709,2]
[404275105,1770023179062,-10000.01,0.00010709,2]
[404275106,1770023179304,-10000.01,0.00010709,2]
[404275107,1770023179556,-10000.01,0.00010709,2]
[404275108,1770023179808,-10000.01,0.00010709,2]
[404275109,1770023180079,-10000.01,0.00010709,2]
[404275110,1770023180332,-10000.01,0.00010709,2]
[404275111,1770023180585,-10000.01,0.00010709,2]
[404275112,1770023180847,-10000.01,0.00010709,2]
[404275114,1770023184641,-10000.01,0.00010709,2]
[404275115,1770023184878,-10000.01,0.00010709,2]
[404275116,1770023185152,-10000.01,0.00010709,2]
[404275117,1770023185387,-10000.01,0.00010709,2]
[404275118,1770023185636,-10000.01,0.00010709,2]
[404275119,1770023185882,-10000.01,0.00010709,2]
[404275120,1770023186168,-10000.01,0.00010709,2]
[404275121,1770023186429,-10000.01,0.00010709,2]
[404275122,1770023186679,-10000.01,0.00010709,2]
[404275123,1770023186935,-10000.01,0.00010709,2]
[404275124,1770023188031,-10000.01,0.00010709,2]
[404275125,1770023188293,-10000.01,0.00010709,2]
[404275126,1770023188561,-10000.01,0.00010709,2]
[404275127,1770023188807,-10000.01,0.00010709,2]
[404275128,1770023189066,-10000.01,0.00010709,2]
[404275129,1770023189330,-10000.01,0.00010709,2]
[404275130,1770023189627,-10000.01,0.00010709,2]
[404275131,1770023189870,-10000.01,0.00010709,2]
[404275132,1770023190113,-10000.01,0.00010709,2]
[404275133,1770023190376,-10000.01,0.00010709,2]
[404275134,1770023196651,-10000.01,0.00010709,2]
[404275135,1770023196869,-10000.01,0.00010709,2]
[404275137,1770023197118,-10000.01,0.00010709,2]
[404275138,1770023197390,-10000.01,0.00010709,2]
[404275139,1770023197672,-10000.01,0.00010709,2]
[404275140,1770023197924,-10000.01,0.00010709,2]
[404275141,1770023198244,-10000.01,0.00010709,2]
[404275142,1770023216477,-190.63363859,0.00010616,2]
[404275415,1770023375862,588.0,0.00022,90]
[404275418,1770023393931,-3.40995744,0.00010616,2]